bitfinex-derivatives/quotes_BTCF0:USTF0_20241020
["timestamp","ask_amount","ask_price","bid_price","bid_amount"]
[1729415802905,0.41187972,68434.0,68433.0,0.44948206]
[1729415805015,0.41187972,68434.0,68433.0,0.39658312]
[1729415807320,0.41187972,68434.0,68433.0,0.3234878]
[1729415807813,0.41187972,68434.0,68433.0,0.39658817]
[1729415808715,0.41187972,68434.0,68433.0,0.3234878]
[1729415809319,0.41187972,68434.0,68433.0,0.39658971]
[1729415809519,0.41187972,68434.0,68433.0,0.29088643]
[1729415810209,0.41187972,68434.0,68433.0,0.3966501]
[1729415810413,0.073066,68434.0,68433.0,0.3966501]
[1729415811920,0.073066,68434.0,68433.0,0.29088643]
[1729415813016,0.10885281,68434.0,68433.0,0.21778452]
[1729415813318,0.08064314,68434.0,68429.0,0.2184992]
[1729415813513,0.07307,68431.0,68429.0,0.2184992]
[1729415813716,0.08064314,68430.0,68428.0,0.073072]
[1729415814016,0.24125789,68429.0,68428.0,0.073072]
[1729415814519,0.24125789,68429.0,68428.0,0.29212313]
[1729415816811,0.24125789,68429.0,68428.0,0.21905113]
[1729415817007,0.31432989,68429.0,68428.0,0.21905113]
[1729415817208,0.15371514,68429.0,68428.0,0.21905113]
[1729415818822,0.15371514,68429.0,68428.0,0.10205364]
[1729415820021,0.3608,68434.0,68428.0,0.59819274]
[1729415820221,0.3608,68434.0,68432.0,0.10234606]
[1729415820416,0.433866,68434.0,68433.0,0.23275038]
[1729415820616,0.433866,68434.0,68433.0,0.45056742]
[1729415821830,0.073066,68434.0,68433.0,0.45056742]
[1729415822033,0.433866,68434.0,68433.0,0.45056742]
[1729415822327,0.073066,68434.0,68433.0,0.45056742]
[1729415822528,0.433866,68434.0,68433.0,0.45056742]
[1729415823320,0.073066,68434.0,68433.0,0.45056742]
[1729415823520,0.433866,68434.0,68433.0,0.23275038]
[1729415824329,0.433866,68434.0,68433.0,0.10664681]
[1729415826133,0.073066,68434.0,68433.0,0.10664681]
[1729415826627,0.433866,68434.0,68433.0,0.10664681]
[1729415828025,0.07307,68431.0,68429.0,0.07309661]
[1729415828426,0.07307,68431.0,68430.0,0.2193498]
[1729415831630,0.07307,68431.0,68430.0,0.32567249]
[1729415832032,0.07307,68431.0,68430.0,0.10632269]
[1729415832539,0.07307,68431.0,68430.0,0.32481536]
[1729415835136,0.07307,68431.0,68430.0,0.11729207]
[1729415835137,0.15371292,68431.0,68430.0,0.11729207]
[1729415840240,0.15371163,68431.0,68430.0,0.11729207]
[1729415842945,0.07307,68431.0,68430.0,0.35197642]
[1729415844944,0.07307,68431.0,68430.0,0.35206397]
[1729415848037,0.073058,68442.0,68437.0,0.073062]
[1729415848346,0.073058,68442.0,68439.0,0.08772744]
[1729415848547,0.073058,68442.0,68440.0,0.10710584]
[1729415848747,0.073058,68442.0,68441.0,0.10710584]
[1729415849739,0.073058,68442.0,68441.0,0.10670245]
[1729415849963,0.10884063,68442.0,68433.0,0.08868]
[1729415850247,0.08063373,68441.0,68438.0,0.073061]
[1729415850446,0.08063373,68440.0,68439.0,0.21789605]
[1729415850644,0.08063373,68440.0,68430.0,0.3608]
[1729415850845,0.15369473,68439.0,68430.0,0.44948]
[1729415851044,0.15369473,68439.0,68435.0,0.29335139]
[1729415851045,0.08063373,68438.0,68435.0,0.29335139]
[1729415851346,0.08063373,68438.0,68435.0,0.073064]
[1729415851543,0.08063373,68438.0,68436.0,0.21881509]
[1729415852644,0.08063373,68438.0,68436.0,0.29187909]
[1729415853047,0.08063373,68438.0,68436.0,0.073064]
[1729415853241,0.08063373,68438.0,68437.0,0.22061702]
[1729415853745,0.19638072,68438.0,68437.0,0.22061702]
[1729415853948,0.24123182,68438.0,68437.0,0.22061702]
[1729415854639,0.080637,68438.0,68437.0,0.22061702]
[1729415854945,0.24123509,68438.0,68437.0,0.22061702]
[1729415855649,0.080637,68438.0,68437.0,0.22061702]
[1729415856051,0.24123509,68438.0,68437.0,0.22061702]
[1729415856642,0.24123522,68438.0,68437.0,0.22061702]
[1729415857050,0.08063713,68438.0,68437.0,0.22061702]
[1729415858039,0.073061,68439.0,68437.0,0.22061702]
[1729415860055,0.073062,68438.0,68437.0,0.22061702]
[1729415860851,0.433862,68438.0,68437.0,0.22061702]
[1729415861149,0.433862,68438.0,68436.0,0.22038104]
[1729415861449,0.433862,68438.0,68437.0,0.22038104]
[1729415861648,0.073062,68438.0,68437.0,0.22038104]
[1729415861859,0.073062,68438.0,68436.0,0.21953913]
[1729415862149,0.073062,68438.0,68435.0,0.07305016]
[1729415862558,0.073062,68438.0,68436.0,0.21929706]
[1729415863346,0.073062,68438.0,68436.0,0.29234722]
[1729415863753,0.073062,68438.0,68436.0,0.07305016]
[1729415863957,0.073062,68438.0,68437.0,0.21988997]
[1729415865053,0.11791502,68438.0,68437.0,0.21988997]
[1729415865257,0.18049345,68438.0,68437.0,0.21988997]
[1729415865454,0.15369918,68438.0,68435.0,0.31740525]
[1729415865767,0.1604247,68436.0,68435.0,0.073065]
[1729415866058,0.1604247,68436.0,68435.0,0.29277798]
[1729415866059,0.24106188,68436.0,68435.0,0.29277798]
[1729415866264,0.08063718,68436.0,68435.0,0.29277798]
[1729415869062,0.03578415,68436.0,68435.0,0.29277798]
[1729415869267,0.08063716,68436.0,68435.0,0.29277798]
[1729415872262,0.16046512,68436.0,68435.0,0.29277798]
[1729415872665,0.24110228,68436.0,68435.0,0.29277798]
[1729415873270,0.073062,68438.0,68435.0,0.39954535]
[1729415873473,0.073062,68438.0,68437.0,0.07304086]
[1729415873852,0.073062,68438.0,68437.0,0.29118534]
[1729415874467,0.073062,68438.0,68437.0,0.39797362]
[1729415874669,0.073062,68438.0,68437.0,0.29118534]
[1729415874863,0.073062,68438.0,68437.0,0.39797523]
[1729415876468,0.073062,68438.0,68437.0,0.32493437]
[1729415878768,0.073062,68438.0,68437.0,0.32500498]
[1729415880176,0.15369913,68438.0,68437.0,0.21814448]
[1729415880679,0.15369913,68438.0,68436.0,0.21834108]
[1729415880869,0.08063713,68437.0,68436.0,0.21834108]
[1729415881069,0.08063713,68437.0,68435.0,0.073065]
[1729415881270,0.08063713,68436.0,68435.0,0.073065]
[1729415881670,0.08063713,68436.0,68435.0,0.29309337]
[1729415886987,0.08063686,68436.0,68435.0,0.29309337]
[1729415888183,0.073062,68438.0,68435.0,0.39995568]
[1729415888488,0.073062,68438.0,68436.0,0.19459781]
[1729415888674,0.073062,68438.0,68437.0,0.10686231]
[1729415888879,0.073062,68438.0,68437.0,0.32500948]
[1729415903194,0.15370028,68438.0,68437.0,0.10115756]
[1729415904088,0.51450028,68438.0,68437.0,0.10115756]
[1729415904396,0.56691139,68438.0,68437.0,0.10115756]
[1729415908783,0.20611139,68438.0,68437.0,0.10115756]
[1729415908982,0.15370028,68438.0,68437.0,0.10115756]
[1729415910190,0.073062,68438.0,68437.0,0.37650871]
[1729415910390,0.02625924,68439.0,68437.0,0.48300457]
[1729415910590,0.073061,68439.0,68438.0,0.33625756]
[1729415911295,0.073061,68439.0,68438.0,0.23264441]
[1729415916284,0.073061,68439.0,68438.0,0.10613525]
[1729415918401,0.073063,68437.0,68436.0,0.05845077]
[1729415921594,0.433863,68437.0,68436.0,0.05845077]
[1729415925299,0.44144261,68437.0,68426.0,0.00822378]
[1729415925596,0.073069,68431.0,68430.0,0.07307]
[1729415925794,0.10885557,68431.0,68430.0,0.07307]
[1729415925996,0.15371161,68431.0,68430.0,0.07307]
[1729415930807,0.15371161,68431.0,68426.0,0.073075]
[1729415931008,0.08064261,68430.0,68426.0,0.073075]
[1729415931200,0.08064261,68429.0,68426.0,0.29252137]
[1729415931400,0.08064261,68428.0,68426.0,0.29252137]
[1729415931611,0.08064261,68427.0,68426.0,0.29252137]
[1729415933397,0.073069,68431.0,68426.0,0.6748089]
[1729415933601,0.0992094,68431.0,68427.0,0.48456462]
[1729415933808,0.0992094,68431.0,68428.0,0.23435528]
[1729415934009,0.0992094,68431.0,68429.0,0.23435528]
[1729415934205,0.0992094,68431.0,68430.0,0.23435528]
[1729415940213,0.04802358,68431.0,68430.0,0.23435528]
[1729415940409,0.0992104,68431.0,68427.0,0.10227709]
[1729415940611,0.16048907,68428.0,68426.0,0.073075]
[1729415940915,0.59436207,68428.0,68427.0,0.21931712]
[1729415941114,0.67500495,68428.0,68427.0,0.21931712]
[1729415941313,0.56693061,68428.0,68427.0,0.21931712]
[1729415943818,0.56693324,68428.0,68427.0,0.21931712]
[1729415944212,0.51451851,68428.0,68427.0,0.21931712]
[1729415945006,0.08064551,68428.0,68427.0,0.21931712]
[1729415946316,0.08064551,68428.0,68427.0,0.29239112]
[1729415946626,0.08064551,68428.0,68427.0,0.073074]
[1729415946811,0.08064551,68428.0,68426.0,0.21960636]
[1729415947012,0.08064551,68427.0,68425.0,0.32978422]
[1729415947307,0.073073,68428.0,68426.0,0.38147421]
[1729415947523,0.073073,68428.0,68427.0,0.38147421]
[1729415947813,0.073073,68428.0,68427.0,0.59927287]
[1729415948718,0.073073,68428.0,68427.0,0.70161484]
[1729415949021,0.073073,68428.0,68427.0,0.71624944]
[1729415949519,0.073073,68428.0,68427.0,0.59927287]
[1729415949718,0.073073,68428.0,68427.0,0.71624944]
[1729415950312,0.073073,68428.0,68427.0,0.59927287]
[1729415951620,0.073073,68428.0,68427.0,0.71624944]
[1729415952414,0.073073,68428.0,68427.0,0.59927287]
[1729415953313,0.073073,68428.0,68427.0,0.44811268]
[1729415955507,0.073073,68428.0,68427.0,0.21779866]
[1729415955919,0.073074,68427.0,68426.0,0.21833262]
[1729415956122,0.073075,68426.0,68425.0,0.25670922]
[1729415956324,0.10886256,68426.0,68425.0,0.25670922]
[1729415956524,0.10886256,68426.0,68425.0,0.47504184]
[1729415958222,0.10886272,68426.0,68425.0,0.47504184]
[1729415958428,0.15372018,68426.0,68425.0,0.47504184]
[1729415958924,0.15372034,68426.0,68425.0,0.47504184]
[1729415961224,0.2336614,68426.0,68425.0,0.47504184]
[1729415961625,0.31430674,68426.0,68425.0,0.47504184]
[1729415962432,0.1605864,68426.0,68425.0,0.85084059]
[1729415962726,0.1605864,68426.0,68425.0,0.96779516]
[1729415962920,0.1605864,68426.0,68425.0,0.85084059]
[1729415963124,0.1605864,68426.0,68425.0,0.74572345]
[1729415963320,0.2336614,68426.0,68425.0,0.8508064]
[1729415963626,0.2336614,68426.0,68425.0,0.96776259]
[1729415964820,0.2336614,68426.0,68425.0,0.8508064]
[1729415965023,0.2336614,68426.0,68425.0,0.9677628]
[1729415966720,0.2336614,68426.0,68425.0,0.8508064]
[1729415966917,0.2336614,68426.0,68425.0,0.96776973]
[1729415967121,0.2336614,68426.0,68425.0,0.96776898]
[1729415967320,0.073075,68426.0,68425.0,0.96776898]
[1729415967931,0.073075,68426.0,68425.0,0.96707267]
[1729415968319,0.073075,68426.0,68425.0,0.85011009]
[1729415970244,0.3608,68431.0,68425.0,0.85011009]
[1729415970444,0.073073,68428.0,68425.0,0.47504184]
[1729415970640,0.08064414,68427.0,68425.0,0.47504184]
[1729415970845,0.03578725,68426.0,68425.0,0.47504184]
[1729415974146,0.10886225,68426.0,68425.0,0.47504184]
[1729415977656,0.15371914,68426.0,68425.0,0.47504184]
[1729415978452,0.15371914,68426.0,68425.0,0.8486334]
[1729415978453,0.073075,68426.0,68425.0,0.8486334]
[1729415981247,0.073075,68426.0,68425.0,0.96561905]
[1729415982641,0.3608,68431.0,68425.0,0.96570956]
[1729415982844,0.073071,68430.0,68429.0,0.1023636]
[1729415983038,0.073071,68430.0,68429.0,0.37368207]
[1729415983250,0.073071,68430.0,68429.0,0.59351417]
[1729415985649,0.073071,68430.0,68429.0,0.44889337]
[1729415987350,0.073071,68430.0,68429.0,0.44809824]
[1729415992161,0.073071,68430.0,68429.0,0.44816169]
[1729415993551,0.15371436,68430.0,68429.0,0.10283512]
[1729415999959,0.51451436,68430.0,68429.0,0.10283512]
[1729416000360,0.56692877,68430.0,68429.0,0.10283512]
[1729416000563,0.3608,68430.0,68429.0,0.47615142]
[1729416001466,0.433871,68430.0,68429.0,0.47615142]
[1729416002755,0.46055702,68430.0,68429.0,0.43437226]
[1729416002957,0.46055702,68430.0,68429.0,0.22917251]
[1729416003262,1.06055702,68430.0,68429.0,0.0299957]
[1729416003561,1.06055702,68430.0,68420.0,0.08771263]
[1729416003562,0.073072,68429.0,68420.0,0.08771263]
[1729416003764,0.43388,68421.0,68420.0,0.08771263]
[1729416004153,0.073081,68420.0,68419.0,0.08771263]
[1729416004354,0.073085,68416.0,68415.0,0.00219235]
[1729416004866,0.073085,68416.0,68415.0,0.22016563]
[1729416015668,0.073085,68416.0,68415.0,0.30771837]
[1729416015865,0.073085,68416.0,68415.0,0.21797328]
[1729416016261,0.073085,68416.0,68414.0,0.08755274]
[1729416016564,0.073085,68416.0,68415.0,0.22048133]
[1729416016961,0.073085,68416.0,68413.0,0.08755274]
[1729416016962,0.073082,68419.0,68414.0,0.22048133]
[1729416017160,0.0752,68420.0,68413.0,0.08755274]
[1729416017161,0.073087,68415.0,68413.0,0.08755274]
[1729416017562,0.02920313,68415.0,68414.0,0.21893711]
[1729416017769,0.0752,68420.0,68414.0,0.21893711]
[1729416018074,0.073085,68416.0,68415.0,0.08749593]
[1729416018571,0.073085,68416.0,68415.0,0.41055256]
[1729416018771,0.073085,68416.0,68415.0,0.19051622]
[1729416018963,0.073085,68416.0,68415.0,0.41055256]
[1729416019161,0.073085,68416.0,68415.0,0.41051449]
[1729416020171,0.073085,68416.0,68415.0,0.32301909]
[1729416020363,0.073085,68416.0,68415.0,0.41051449]
[1729416021564,0.073085,68416.0,68415.0,0.32301909]
[1729416022767,0.073085,68416.0,68415.0,0.22003634]
[1729416023163,0.073085,68416.0,68411.0,0.21965718]
[1729416023466,0.073085,68416.0,68415.0,0.21965718]
[1729416023865,0.073085,68416.0,68412.0,0.21965718]
[1729416024068,0.073085,68416.0,68415.0,0.2185399]
[1729416024369,0.073085,68416.0,68412.0,0.2185399]
[1729416024679,0.073085,68416.0,68415.0,0.2185399]
[1729416024969,0.10887967,68416.0,68412.0,0.21943103]
[1729416025174,0.073085,68416.0,68412.0,0.21943103]
[1729416025362,0.073085,68416.0,68410.0,0.073092]
[1729416025671,0.073085,68416.0,68412.0,0.21943103]
[1729416025975,0.073085,68416.0,68410.0,0.073092]
[1729416026471,0.03579476,68415.0,68411.0,0.21932212]
[1729416026677,0.073085,68416.0,68411.0,0.21932212]
[1729416027068,0.03579453,68415.0,68411.0,0.21932212]
[1729416027263,0.073085,68416.0,68411.0,0.21932212]
[1729416027461,0.03579462,68415.0,68411.0,0.21932212]
[1729416027670,0.073085,68416.0,68411.0,0.21932212]
[1729416027972,0.03579452,68415.0,68411.0,0.21932212]
[1729416028171,0.0752,68420.0,68411.0,0.21932212]
[1729416028368,0.073087,68415.0,68411.0,0.21932212]
[1729416029476,0.03579431,68414.0,68411.0,0.21932212]
[1729416029670,0.073087,68415.0,68411.0,0.21932212]
[1729416029878,0.03579431,68414.0,68411.0,0.21932212]
[1729416030080,0.073087,68415.0,68411.0,0.21932212]
[1729416030266,0.03579431,68414.0,68411.0,0.21932212]
[1729416030466,0.073087,68415.0,68411.0,0.21932212]
[1729416030662,0.073087,68415.0,68412.0,0.47105623]
[1729416030973,0.073085,68416.0,68413.0,0.44561155]
[1729416031177,0.073085,68416.0,68414.0,0.22600219]
[1729416031372,0.073085,68416.0,68415.0,0.22600219]
[1729416031577,0.073085,68416.0,68415.0,0.44636156]
[1729416032073,0.073085,68416.0,68415.0,0.54872619]
[1729416033280,0.073085,68416.0,68415.0,0.58877449]
[1729416033785,0.073085,68416.0,68415.0,0.58833705]
[1729416034871,0.073085,68416.0,68415.0,0.69071125]
[1729416035071,0.073085,68416.0,68415.0,0.54829814]
[1729416037369,0.073085,68416.0,68415.0,0.69055506]
[1729416037780,0.073085,68416.0,68415.0,0.32326471]
[1729416043471,0.073085,68416.0,68415.0,0.32310613]
[1729416045781,0.1088783,68416.0,68415.0,0.22035937]
[1729416046176,0.1088783,68416.0,68412.0,0.22001863]
[1729416046379,0.073085,68416.0,68411.0,0.07309]
[1729416046771,0.073085,68416.0,68412.0,0.22001863]
[1729416048789,0.03579324,68415.0,68412.0,0.22001863]
[1729416048972,0.03579324,68414.0,68412.0,0.22001863]
[1729416049182,0.03579324,68413.0,68412.0,0.22001863]
[1729416052888,0.073087,68415.0,68412.0,0.54751844]
[1729416053088,0.073087,68415.0,68413.0,0.22512561]
[1729416053283,0.073087,68415.0,68414.0,0.22514493]
[1729416053485,0.073087,68415.0,68414.0,0.44300239]
[1729416054282,0.073087,68415.0,68414.0,0.58514736]
[1729416055990,0.0752,68420.0,68414.0,0.58514736]
[1729416056184,0.0752,68420.0,68419.0,0.0877368]
[1729416056381,0.0752,68420.0,68419.0,0.1904507]
[1729416057385,0.148281,68420.0,68419.0,0.1904507]
[1729416058190,0.148281,68420.0,68419.0,0.19014081]
[1729416059486,0.148281,68420.0,68419.0,0.10240401]
[1729416060796,0.073085,68417.0,68415.0,0.0388]
[1729416060994,0.0752,68420.0,68415.0,0.0388]
[1729416061194,0.03579429,68419.0,68416.0,0.21783171]
[1729416061388,0.03579429,68418.0,68416.0,0.21783171]
[1729416061590,0.08066,68417.0,68416.0,0.21783171]
[1729416062388,0.153744,68417.0,68416.0,0.21783171]
[1729416062592,0.073084,68417.0,68416.0,0.21783171]
[1729416067788,0.073084,68417.0,68416.0,0.40801276]
[1729416068197,0.0752,68420.0,68416.0,0.44240754]
[1729416068405,0.0752,68420.0,68417.0,0.22457583]
[1729416068599,0.073082,68419.0,68418.0,0.22457583]
[1729416069091,0.073082,68419.0,68418.0,0.32693543]
[1729416069594,0.073082,68419.0,68418.0,0.22457583]
[1729416075801,0.0752,68420.0,68417.0,0.02596189]
[1729416076004,0.073082,68419.0,68418.0,0.07311874]
[1729416081509,0.073083,68418.0,68417.0,0.07311874]
[1729416081706,0.073083,68418.0,68417.0,0.17515301]
[1729416082206,0.073083,68418.0,68417.0,0.07311874]
[1729416082709,0.073083,68418.0,68417.0,0.1751532]
[1729416082904,0.073083,68418.0,68415.0,0.06455758]
[1729416082905,0.08065769,68419.0,68415.0,0.06455758]
[1729416083110,0.073085,68416.0,68415.0,0.06455758]
[1729416083310,0.10887826,68416.0,68415.0,0.06455758]
[1729416083497,0.10887826,68416.0,68415.0,0.28401083]
[1729416085298,0.1537417,68416.0,68415.0,0.28401083]
[1729416090713,0.1537417,68416.0,68415.0,0.25825325]
[1729416090909,0.23581629,68420.0,68415.0,0.62288633]
[1729416091215,0.073082,68419.0,68418.0,0.10234981]
[1729416091405,0.073082,68419.0,68418.0,0.32578742]
[1729416091606,0.073082,68419.0,68418.0,0.22343761]
[1729416091802,0.073082,68419.0,68418.0,0.44351377]
[1729416098119,0.15373933,68419.0,68418.0,0.10305889]
[1729416104931,0.15373839,68419.0,68418.0,0.10305889]
[1729416106130,0.3608,68421.0,68418.0,0.57217518]
[1729416106327,0.073081,68420.0,68419.0,0.2248151]
[1729416106722,0.073081,68420.0,68419.0,0.44425248]
[1729416109829,0.073081,68420.0,68419.0,0.44353155]
[1729416110229,0.073081,68420.0,68419.0,0.54589658]
[1729416112933,0.15373724,68420.0,68419.0,0.32180241]
[1729416113134,0.15373724,68420.0,68419.0,0.20478674]
[1729416113732,0.20616003,68420.0,68419.0,0.20478674]
[1729416114628,0.20616007,68420.0,68419.0,0.20478674]
[1729416119536,0.20616007,68420.0,68419.0,0.10242171]
[1729416119537,0.20616017,68420.0,68419.0,0.10242171]
[1729416121035,0.073081,68420.0,68419.0,0.32743309]
[1729416124030,0.073081,68420.0,68419.0,0.57187373]
[1729416124540,0.073081,68420.0,68419.0,0.32743309]
[1729416128146,0.073081,68420.0,68419.0,0.10242171]
[1729416128343,0.073081,68420.0,68419.0,0.17554348]
[1729416128536,0.073081,68420.0,68419.0,0.10242171]
[1729416128739,0.073081,68420.0,68419.0,0.17554348]
[1729416129333,0.073081,68420.0,68419.0,0.10242171]
[1729416132148,0.073081,68420.0,68419.0,0.27820693]
[1729416132846,0.073081,68420.0,68419.0,0.27820841]
[1729416133853,0.073081,68420.0,68419.0,0.10242171]
[1729416134354,0.073081,68420.0,68419.0,0.2782625]
[1729416135347,0.073081,68420.0,68419.0,0.17554496]
[1729416136049,0.073081,68420.0,68419.0,0.10242171]
[1729416136446,0.15373868,68420.0,68419.0,0.10242171]
[1729416136953,0.15373868,68420.0,68419.0,0.06381188]
[1729416137657,0.2061624,68420.0,68419.0,0.06381188]
[1729416139454,0.20616279,68420.0,68419.0,0.06381188]
[1729416142157,0.20616216,68420.0,68419.0,0.06381188]
[1729416143154,0.20616216,68420.0,68419.0,0.28846994]
[1729416143155,0.073081,68420.0,68419.0,0.28846994]
[1729416151060,0.10887397,68420.0,68419.0,0.06381188]
[1729416154551,0.15373804,68420.0,68419.0,0.06381188]
[1729416156759,0.11794532,68420.0,68419.0,0.06381188]
[1729416156959,0.1537385,68420.0,68419.0,0.06381188]
[1729416158168,0.02188574,68420.0,68419.0,0.28846279]
[1729416158363,0.073081,68420.0,68419.0,0.28846279]
[1729416158967,0.073081,68420.0,68419.0,0.1663004]
[1729416161668,0.073081,68420.0,68419.0,0.16590123]
[1729416165576,0.073081,68420.0,68419.0,0.28759003]
[1729416173163,0.15373784,68420.0,68419.0,0.06381188]
[1729416174670,0.10887389,68420.0,68419.0,0.06381188]
[1729416178176,0.073081,68420.0,68419.0,0.06381188]
[1729416181382,0.073081,68420.0,68419.0,0.16585818]
[1729416181583,0.073081,68420.0,68419.0,0.06381188]
[1729416181883,0.073081,68420.0,68419.0,0.16585896]
[1729416184580,0.073081,68420.0,68419.0,0.16585337]
[1729416185274,0.073081,68420.0,68419.0,0.38986166]
[1729416187674,0.073081,68420.0,68419.0,0.5310822]
[1729416188275,0.16055148,68421.0,68419.0,0.06381188]
[1729416188583,0.073081,68420.0,68419.0,0.06381188]
[1729416188781,0.15373517,68420.0,68419.0,0.06381188]
[1729416192673,0.31428665,68420.0,68419.0,0.06381188]
[1729416192888,0.15373517,68420.0,68419.0,0.06381188]
[1729416194679,0.31428665,68420.0,68419.0,0.06381188]
[1729416194885,0.15373517,68420.0,68419.0,0.06381188]
[1729416196182,0.073081,68420.0,68419.0,0.38888349]
[1729416198187,0.073081,68420.0,68419.0,0.28651002]
[1729416199695,0.073081,68420.0,68419.0,0.28661514]
[1729416203297,0.11794433,68420.0,68419.0,0.06381188]
[1729416203595,0.15373672,68420.0,68419.0,0.06381188]
[1729416203896,0.15373668,68420.0,68419.0,0.06381188]
[1729416210201,0.073081,68420.0,68419.0,0.28664572]
[1729416211897,0.073081,68420.0,68419.0,0.42735134]
[1729416212102,0.073081,68420.0,68419.0,0.52972481]
[1729416213197,0.073081,68420.0,68419.0,0.28664572]
[1729416213604,0.073081,68420.0,68419.0,0.28667251]
[1729416218205,0.38680217,68424.0,68419.0,0.23860997]
[1729416218508,0.38680217,68424.0,68423.0,0.05850105]
[1729416218711,0.45987917,68424.0,68423.0,0.05850105]
[1729416220003,0.073081,68420.0,68419.0,0.07312632]
[1729416220209,0.073081,68420.0,68419.0,0.17442615]
[1729416220403,0.073081,68420.0,68419.0,0.39256131]
[1729416221611,0.073081,68420.0,68419.0,0.39256394]
[1729416221815,0.073081,68420.0,68419.0,0.31943499]
[1729416223508,0.073081,68420.0,68419.0,0.31940188]
[1729416223704,0.073081,68420.0,68419.0,0.39253035]
[1729416224511,0.073081,68420.0,68419.0,0.31940188]
[1729416225403,0.15373658,68420.0,68419.0,0.10112045]
[1729416226710,0.10887333,68420.0,68419.0,0.10112045]
[1729416228304,0.10887296,68420.0,68419.0,0.10112045]
[1729416233310,0.073081,68420.0,68419.0,0.20326677]
[1729416236723,0.073081,68420.0,68419.0,0.32502593]
[1729416238111,0.073081,68420.0,68419.0,0.32502873]
[1729416238729,0.073081,68420.0,68419.0,0.56876954]
[1729416240308,0.15373657,68420.0,68416.0,0.073085]
[1729416240509,0.073084,68418.0,68416.0,0.073085]
[1729416240716,0.08065557,68417.0,68416.0,0.073085]
[1729416241225,0.08065557,68417.0,68416.0,0.29197177]
[1729416244822,0.08065557,68417.0,68416.0,0.21888677]
[1729416245028,0.15373957,68417.0,68416.0,0.21888677]
[1729416248322,0.073084,68417.0,68416.0,0.58490897]
[1729416248516,0.38680217,68424.0,68416.0,0.70189462]
[1729416248711,0.073083,68419.0,68417.0,0.3660222]
[1729416248915,0.073083,68419.0,68418.0,0.3660222]
[1729416249122,0.073083,68419.0,68418.0,0.58607455]
[1729416251127,0.073083,68419.0,68418.0,0.58610202]
[1729416255233,0.073083,68419.0,68418.0,0.68847901]
[1729416255430,0.073083,68419.0,68418.0,0.32241852]
[1729416263342,0.15373763,68419.0,68418.0,0.22005235]
[1729416263536,0.15373763,68419.0,68418.0,0.10303895]
[1729416263741,0.073084,68418.0,68416.0,0.21876541]
[1729416263944,0.08065463,68417.0,68414.0,0.073088]
[1729416264239,0.08065463,68416.0,68415.0,0.22008764]
[1729416264434,0.03579191,68416.0,68415.0,0.22008764]
[1729416267335,0.08065463,68416.0,68415.0,0.22008764]
[1729416270452,0.073085,68417.0,68415.0,0.44529223]
[1729416270648,0.073085,68417.0,68416.0,0.22629762]
[1729416271149,0.073085,68417.0,68416.0,0.44480716]
[1729416278358,0.02189098,68417.0,68416.0,0.44480716]
[1729416278663,0.03579239,68417.0,68416.0,0.10149463]
[1729416279356,0.15374072,68417.0,68416.0,0.10149463]
[1729416285479,0.02920442,68417.0,68416.0,0.47182829]
[1729416285673,0.38680217,68424.0,68416.0,0.47182829]
[1729416285879,0.073081,68420.0,68419.0,0.10236426]
[1729416286179,0.073081,68420.0,68419.0,0.6918515]
[1729416290074,0.073081,68420.0,68419.0,0.68954883]
[1729416293585,0.15373666,68420.0,68419.0,0.32151784]
[1729416299787,0.15373652,68420.0,68419.0,0.32151784]
[1729416300587,0.073081,68420.0,68419.0,0.42443443]
[1729416302688,0.073081,68420.0,68419.0,0.32207017]
[1729416303093,0.073081,68420.0,68419.0,0.32204753]
[1729416307984,0.073081,68420.0,68419.0,0.32204755]
[1729416310893,0.073081,68420.0,68419.0,0.32207955]
[1729416315493,0.15373553,68420.0,68419.0,0.21915358]
[1729416318300,0.08065453,68418.0,68417.0,0.29207531]
[1729416319397,0.16071553,68418.0,68417.0,0.29207531]
[1729416319696,0.2055782,68418.0,68417.0,0.29207531]
[1729416319993,0.24137006,68418.0,68417.0,0.29207531]
[1729416323601,0.073083,68419.0,68417.0,0.51755717]
[1729416323793,0.073083,68419.0,68418.0,0.22548186]
[1729416324296,0.073083,68419.0,68418.0,0.44395522]
[1729416330591,1.50076,68423.0,68418.0,0.58643563]
[1729416330788,0.073081,68421.0,68419.0,0.47033517]
[1729416330988,0.073081,68421.0,68420.0,0.22548186]
[1729416331298,0.073081,68421.0,68420.0,0.44448953]
[1729416338601,0.10887374,68421.0,68420.0,0.21900767]
[1729416338803,0.15373752,68421.0,68420.0,0.21900767]
[1729416342003,0.15373652,68421.0,68420.0,0.21900767]
[1729416345196,0.08065552,68421.0,68420.0,0.29208867]
[1729416345607,0.433877,68424.0,68420.0,0.43971865]
[1729416345813,0.433877,68424.0,68421.0,0.36890834]
[1729416345995,0.433877,68424.0,68422.0,0.22474315]
[1729416346199,0.433877,68424.0,68423.0,0.22474315]
[1729416346701,0.3608,68424.0,68423.0,0.22471776]
[1729416346905,0.433877,68424.0,68423.0,0.22471776]
[1729416349003,0.433877,68424.0,68423.0,0.10251902]
[1729416350304,0.433877,68424.0,68423.0,0.19024805]
[1729416350605,0.433877,68424.0,68423.0,0.10251902]
[1729416353807,0.073079,68422.0,68421.0,0.0418]
[1729416354009,0.10887094,68422.0,68421.0,0.0418]
[1729416354400,1.60887094,68422.0,68421.0,0.0418]
[1729416354601,0.10887094,68422.0,68421.0,0.0418]
[1729416358206,0.15373375,68422.0,68421.0,0.0418]
[1729416360810,0.073079,68422.0,68421.0,0.26675104]
[1729416367416,1.50076,68423.0,68421.0,0.26675104]
[1729416367731,1.573078,68423.0,68422.0,0.22495104]
[1729416368917,0.073079,68422.0,68421.0,0.0418]
[1729416369127,0.15373522,68422.0,68421.0,0.0418]
[1729416370413,0.10887161,68422.0,68421.0,0.0418]
[1729416373314,0.10887161,68422.0,68421.0,0.11488]
[1729416373515,0.10887161,68422.0,68421.0,0.33415278]
[1729416375715,0.073079,68422.0,68421.0,0.43632042]
[1729416375918,0.073079,68422.0,68421.0,0.55810033]
[1729416378821,0.073079,68422.0,68421.0,0.55811199]
[1729416380130,0.073079,68422.0,68421.0,0.33415278]
[1729416381230,0.073079,68422.0,68421.0,0.55812962]
[1729416382038,0.073079,68422.0,68421.0,0.33415278]
[1729416388032,0.073079,68422.0,68421.0,0.21714087]
[1729416388033,0.15373265,68422.0,68421.0,0.21714087]
[1729416388339,0.15373265,68422.0,68421.0,0.29022087]
[1729416391243,0.073079,68422.0,68421.0,0.29022087]
[1729416393146,0.073079,68422.0,68421.0,0.51598438]
[1729416393744,0.073079,68422.0,68421.0,0.39321697]
[1729416398149,0.073079,68422.0,68421.0,0.3633327]
[1729416401257,0.073079,68422.0,68421.0,0.46645187]